fUSD/lending_fUSD_20250926
["ID","MTS","AMOUNT","RATE_DAILY","PERIOD"]
[387778153,1758845432475,-5068.2547665,0.00039262,33]
[387778156,1758845432486,-150.0,0.00039492,120]
[387778158,1758845432496,-15219.72548035,0.00039522,2]
[387778160,1758845432509,-700.0,0.000396,14]
[387778162,1758845432520,-473.08,0.00039618,2]
[387778165,1758845432531,-806.06,0.00039618,2]
[387778167,1758845432543,-1500.0,0.000397,14]
[387778169,1758845432553,-260.65300585,0.00039772,20]
[387778171,1758845432564,-172.72,0.00039772,2]
[387778173,1758845432574,-36042.8279511,0.00039782,3]
[387778175,1758845432584,-400.0,0.00039799,2]
[387778178,1758845432595,-400.0,0.00039799,2]
[387778180,1758845432606,-400.0,0.00039799,2]
[387778182,1758845432618,-400.0,0.00039799,2]
[387778184,1758845432629,-400.0,0.00039799,2]
[387778186,1758845432645,-400.0,0.00039799,2]
[387778189,1758845432656,-400.0,0.00039799,2]
[387778191,1758845432667,-509.93,0.00039799,2]
[387778193,1758845432677,-400.0,0.00039799,2]
[387778195,1758845432690,-400.0,0.00039799,2]
[387778197,1758845432701,-400.0,0.00039799,2]
[387778200,1758845432713,-400.0,0.00039799,2]
[387778202,1758845432725,-400.0,0.00039799,2]
[387778204,1758845432736,-497.33242709,0.00039799,2]
[387778206,1758845432747,-400.0,0.00039799,2]
[387778208,1758845432758,-487.26,0.00039799,2]
[387778210,1758845432769,-400.0,0.00039799,2]
[387778213,1758845432779,-501.27,0.00039799,2]
[387778215,1758845432790,-2300.0,0.000398,14]
[387778217,1758845432802,-15219.72548035,0.00039833,2]
[387778219,1758845432814,-516.82390809,0.00039846,3]
[387778222,1758845432825,-190.5761145,0.00039861,15]
[387778224,1758845432837,-159.05436439,0.00039871,13]
[387778226,1758845432848,-167.23116866,0.00039871,2]
[387778228,1758845432859,-190.57611449,0.0003989,15]
[387778230,1758845432870,-1193.88,0.00039893,2]
[387778232,1758845432881,-167.53,0.00039893,2]
[387778234,1758845432892,-150.0,0.00039893,2]
[387778236,1758845432903,-175.32,0.00039893,2]
[387778239,1758845432914,-830.95,0.00039893,2]
[387778241,1758845432925,-167.53,0.00039893,2]
[387778243,1758845432936,-150.0,0.00039893,2]
[387778245,1758845432947,-167.53,0.00039893,2]
[387778247,1758845432959,-150.0,0.00039893,2]
[387778250,1758845432971,-167.06,0.00039893,2]
[387778252,1758845432982,-150.0,0.00039893,2]
[387778254,1758845432994,-150.0,0.00039893,2]
[387778257,1758845433005,-309.72,0.00039895,2]
[387778259,1758845433017,-150.0,0.00039895,2]
[387778261,1758845433029,-1194.73,0.00039895,2]
[387778262,1758845433041,-150.0,0.00039895,2]
[387778263,1758845433052,-544.25,0.00039895,2]
[387778264,1758845433062,-350.41,0.00039895,2]
[387778265,1758845433073,-2832.24122,0.000399,2]
[387778266,1758845433084,-1000.0,0.000399,7]
[387778267,1758845433096,-257.5765923,0.000399,2]
[387778268,1758845433107,-3100.0,0.000399,14]
[387778269,1758845433118,-7474.3991674,0.00039916,2]
[387778270,1758845433131,-158.872501,0.00039916,2]
[387778271,1758845433145,-2038.565203,0.00039916,2]
[387778272,1758845433158,-150.0,0.0003993,2]
[387778273,1758845433174,-657321.19893626,0.00039933,5]
[387778274,1758845438579,-158.95,0.00019472,2]
[387778275,1758845438591,-158.95,0.0002142,2]
[387778276,1758845438601,-158.95,0.00023367,2]
[387778277,1758845438611,-146.084,0.00025314,2]
[387778278,1758845438624,-12.866,0.00025314,2]
[387778279,1758845438635,-158.95,0.00027261,2]
[387778280,1758845438648,-156.50359918,0.00027862,2]
[387778281,1758845438669,-264.15826762,0.00027862,2]
[387778282,1758845438728,-1924.8228994,0.00027862,2]
[387778283,1758845438795,-1832.5152338,0.00027862,2]
[387778284,1758845438806,-158.95,0.00029209,2]
[387778285,1758845438816,-4178.0,0.00030862,2]
[387778286,1758845438827,-158.95,0.00031156,2]
[387778287,1758845438837,-158.95,0.00033103,2]
[387778288,1758845438848,-4178.0,0.00033862,2]
[387778289,1758845438858,-500.0,0.00034346,7]
[387778290,1758845438869,-280.4479452,0.00034346,7]
[387778291,1758845438879,-400.0,0.00034346,2]
[387778292,1758845438890,-235.3,0.0003462,2]
[387778293,1758845438900,-1585.11111199,0.00035,120]
[387778294,1758845438911,-158.95,0.0003505,2]
[387778295,1758845438921,-1585.11111199,0.000354,120]
[387778296,1758845438931,-1585.11111199,0.000357,120]
[387778297,1758845438942,-1585.11111199,0.000361,120]
[387778298,1758845438952,-1585.11111199,0.000364,120]
[387778299,1758845438963,-854.687,0.00036862,2]
[387778300,1758845438974,-158.95,0.00036998,2]
[387778301,1758845438984,-2339.97536207,0.00038478,2]
[387778302,1758845438995,-158.95,0.00038945,2]
[387778303,1758845439005,-237.90621457,0.00038999,15]
[387778304,1758845439015,-4186512.41061108,0.00039933,5]
[387778323,1758845440000,-1681.08932466,0.00039834,2]
[387778326,1758845440015,-665399.3542674,0.00039933,5]
[387778335,1758845440101,-875.73490002,0.00039933,5]
[387778336,1758845440191,-1945.88137,0.00039933,5]
[387778354,1758845443108,-276.14700023,0.00039122,2]
[387778355,1758845443120,-472.0,0.00039122,2]
[387778356,1758845443132,-710.40897623,0.00039122,2]
[387778357,1758845443175,-881.41938561,0.00039122,2]
[387778358,1758845443184,-51856.33625092,0.00039933,5]
[387778359,1758845443196,-53112.86712311,0.00039933,5]
[387778408,1758845447652,-220887.89068897,0.00039933,5]
[387778409,1758845447663,-664.58212883,0.00039933,5]
[387778410,1758845447679,-1250.0,0.00039933,5]
[387778411,1758845447761,-1000.0,0.000199,2]
[387778412,1758845447771,-110.53430986,0.000249,2]
[387778413,1758845447782,-514.43,0.000249,2]
[387778414,1758845447810,-1402.33759674,0.000249,2]
[387778415,1758845447820,-2027.3019066,0.00025745,4]
[387778416,1758845447829,-2027.3019066,0.0002659,5]
[387778417,1758845447839,-862.39425287,0.00027434,7]
[387778418,1758845447851,-1164.90765373,0.00027434,7]
[387778419,1758845447860,-20979.59522613,0.00039933,5]
[387778420,1758845447875,-450.355517,0.00039933,5]
[387778422,1758845703191,399.999998,0.00023,30]
[387778428,1758846330303,-194.89454,0.00019701,2]
[387778429,1758846330834,-1479.7486,0.000198,2]
[387778430,1758846330864,-3241.50607992,0.00019854,2]
[387778431,1758846330891,-758.61807029,0.00019887,2]
[387778432,1758846330922,-3241.50607992,0.00019892,2]
[387778433,1758846330949,-758.61807029,0.00019893,2]
[387778434,1758846330978,-3241.50607992,0.00019895,2]
[387778435,1758846331006,-357.0552384,0.00019895,2]
[387778436,1758846331032,-300.0,0.00019899,2]
[387778437,1758846331060,-1000.0,0.000199,2]
[387778438,1758846331085,-2719.5057,0.000199,2]
[387778439,1758846331111,-2500.0,0.000199,2]
[387778440,1758846331138,-3241.50607992,0.00019925,2]
[387778441,1758846331166,-758.61807029,0.00019932,2]
[387778442,1758846331194,-357.0552384,0.00019937,2]
[387778443,1758846331222,-758.61807029,0.00019939,2]
[387778444,1758846331250,-3241.50607992,0.0001994,2]
[387778445,1758846331277,-357.0552384,0.00019944,2]
[387778446,1758846331304,-758.61807029,0.00019948,2]
[387778447,1758846331331,-357.0552384,0.00019951,2]
[387778448,1758846331358,-3241.50607992,0.00019961,2]
[387778449,1758846331384,-357.0552384,0.00019971,2]
[387778450,1758846331411,-758.61807029,0.00019991,2]
[387778451,1758846331437,-357.0552384,0.00019994,2]
[387778452,1758846331464,-758.61807029,0.00019994,2]
[387778453,1758846331490,-357.0552384,0.00019997,2]
[387778454,1758846331518,-3241.50607992,0.00019999,2]
[387778455,1758846331544,-1190635.9953347,0.0002,2]
[387778458,1758846358135,-38694.40456027,0.0002,2]
[387778459,1758846358171,-152.74,0.0002,2]
[387778460,1758846358201,-516.57,0.0002,2]
[387778461,1758846358228,-150.75,0.0002,2]
[387778462,1758846358256,-3918.75663799,0.00021,2]
[387778463,1758846358283,-3697.9953349,0.00021,2]
[387778464,1758846358312,-516.82390809,0.00021358,2]
[387778465,1758846358339,-5000.0,0.00021389,2]
[387778466,1758846358365,-577.68,0.000219,2]
[387778467,1758846358391,-225.93461674,0.00022999,7]
[387778468,1758846358418,-865.4286,0.00023353,2]
[387778469,1758846358447,-3359.19407749,0.000249,2]
[387778470,1758846358475,-3359.19407727,0.00025745,4]
[387778471,1758846358507,-3359.19407727,0.0002659,5]
[387778472,1758846358534,-500.0,0.00026914,10]
[387778473,1758846358561,-500.0,0.00026914,10]
[387778474,1758846358587,-500.0,0.00026914,10]
[387778475,1758846358613,-500.0,0.00026914,10]
[387778476,1758846358639,-500.0,0.00026914,10]
[387778477,1758846358664,-500.0,0.00026914,10]
[387778478,1758846358692,-500.0,0.00026914,10]
[387778479,1758846358718,-500.0,0.00026914,10]
[387778480,1758846358746,-428.45153346,0.00027432,2]
[387778481,1758846358775,-500.0,0.00027432,2]
[387778482,1758846358808,-500.0,0.00027432,2]
[387778483,1758846358837,-500.0,0.00027432,2]
[387778484,1758846358867,-500.0,0.00027432,2]
[387778485,1758846358897,-500.0,0.00027432,2]
[387778486,1758846358927,-500.0,0.00027432,2]
[387778487,1758846358956,-500.0,0.00027432,2]
[387778488,1758846358988,-500.0,0.00027432,2]
[387778489,1758846359018,-500.0,0.00027432,2]
[387778490,1758846359053,-500.0,0.00027432,2]
[387778491,1758846359087,-500.0,0.00027432,2]
[387778492,1758846359117,-500.0,0.00027432,2]
[387778493,1758846359150,-523.94096874,0.00027432,2]
[387778494,1758846359180,-500.0,0.00027432,2]
[387778495,1758846359211,-500.0,0.00027432,2]
[387778496,1758846359239,-3359.19407727,0.00027434,7]
[387778497,1758846359266,-150.14,0.00027862,2]
[387778498,1758846359291,-152.81,0.00028056,2]
[387778499,1758846359318,-165.133,0.00028163,18]
[387778500,1758846359345,-3172.08,0.00028163,18]
[387778501,1758846359373,-3359.19407727,0.00028279,9]
[387778502,1758846359398,-483.713,0.00028356,2]
[387778503,1758846359423,-4178.0,0.00028356,2]
[387778504,1758846359451,-4500.08,0.00028356,2]
[387778505,1758846359478,-727.0,0.00028356,2]
[387778506,1758846359506,-899.0,0.00028356,2]
[387778507,1758846359531,-4232.0,0.00028356,2]
[387778508,1758846359557,-3359.19407727,0.00029124,11]
[387778509,1758846359582,-5000.0,0.00029936,2]
[387778510,1758846359611,-3359.19407727,0.00029969,13]
[387778511,1758846361863,248.86,0.00018571,2]
[387778519,1758846362745,151.49,0.0002,2]
[387778520,1758846369410,1275.33479502,0.000301,120]
[387778521,1758846381385,168.46,0.00016585,2]
[387778522,1758846381625,11.83812673,0.00017458,2]
[387778523,1758846381655,156.62187327,0.00017458,2]
[387778524,1758846381831,168.46,0.00018331,2]
[387778532,1758846452688,1254.18697234,0.00023,30]
[387778535,1758846476068,4676.00909738,0.00018,2]
[387778537,1758846497356,250.0,0.00015,2]
[387778538,1758846498381,300.0,0.00017,2]
[387778543,1758846527633,2451.13701563,0.00015,2]
[387778553,1758846632111,-168.46,0.00019204,2]
[387778554,1758846632122,-104.441,0.00019551,2]
[387778555,1758846632223,-145.559,0.00019551,2]
[387778556,1758846632235,-250.0,0.0001979,2]
[387778557,1758846632247,-228.0,0.00019899,2]
[387778558,1758846632257,-350.7409998,0.00019899,2]
[387778559,1758846632286,-849.2590002,0.00019899,2]
[387778560,1758846632296,-1000.0,0.000199,2]
[387778561,1758846632307,-334.36618929,0.000199,2]
[387778562,1758846632395,-2165.63381071,0.000199,2]
[387778563,1758846632406,-190.57611451,0.000199,2]
[387778564,1758846632416,-2922.31559079,0.000199,2]
[387778565,1758846632429,-310.53751278,0.000199,2]
[387778984,1758846638247,-10036.17080227,0.000199,2]
[387778985,1758846638257,-5066.14,0.000199,2]
[387778986,1758846638266,-169.71415268,0.000199,2]
[387778987,1758846638276,-41218.78499681,0.000199,2]
[387778988,1758846638286,-500.0,0.00019908,2]
[387778989,1758846638296,-500.0,0.00019908,2]
[387778990,1758846638305,-404.79724756,0.00019908,2]
[387778991,1758846638315,-13269.02390577,0.00019909,2]
[387778992,1758846638325,-13269.02390577,0.00019917,2]
[387778993,1758846638335,-13269.02390577,0.00019926,2]
[387778994,1758846638345,-13269.02390577,0.00019934,2]
[387778995,1758846638355,-169.71415266,0.00019939,2]
[387778997,1758846638365,-13269.02390577,0.00019943,2]
[387778999,1758846638375,-13269.02390577,0.00019951,2]
[387779001,1758846638385,-13269.02390577,0.0001996,2]
[387779003,1758846638394,-13269.02390577,0.00019968,2]
[387779005,1758846638404,-500.0,0.00019973,2]
[387779007,1758846638414,-190.5761145,0.00019977,2]
[387779009,1758846638423,-509.26776398,0.00019977,2]
[387779011,1758846638434,-13269.02390577,0.00019977,2]
[387779013,1758846638443,-169.71415266,0.00019977,2]
[387779015,1758846638453,-183.14384354,0.00019999,2]
[387779017,1758846638463,-183.05030459,0.00019999,2]
[387779018,1758846638472,-590.71832045,0.00019999,2]
[387779019,1758846638482,-300.0,0.00019999,2]
[387779020,1758846638493,-387.81528722,0.00019999,2]
[387779021,1758846638503,-1000.0,0.00019999,2]
[387779022,1758846638513,-37126.17939303,0.0002,2]
[387779023,1758846638523,-1962651.67669009,0.0002,2]
[387779024,1758846638533,-38667.20571822,0.0002,5]
[387779025,1758846638543,-9830080.13910551,0.0002,2]
[387779139,1758846640155,-671163.34385316,0.0002,2]
[387779140,1758846640278,-976.80573591,0.0002,2]
[387779141,1758846640289,-683.56700001,0.0002,2]
[387779142,1758846640385,-1957.23199999,0.0002,2]
[387779148,1758846643507,-1392.24078914,0.000199,2]
[387779149,1758846643518,-4191.24921086,0.0002,2]
[387779154,1758846646222,-8701.72910969,0.0002,2]
[387779155,1758846646326,-2932.52515492,0.0002,2]
[387779161,1758846660181,-202.28796662,0.0001999,2]
[387779162,1758846660205,-241.22184127,0.0002,2]
[387779172,1758846920755,377.84317835,0.00028,120]
[387779173,1758847373055,898.80803769,0.00018,2]
[387779175,1758847518246,206.94,9.682e-05,2]
[387779176,1758847518442,206.94,0.00010191,2]
[387779177,1758847518648,206.94,0.00010701,2]
[387779178,1758847519316,206.94,0.0001121,2]
[387779179,1758847519551,206.94,0.0001172,2]
[387779180,1758847519781,206.94,0.0001223,2]
[387779181,1758847519989,206.94,0.00012739,2]
[387779182,1758847520198,206.94,0.00013249,2]
[387779183,1758847520420,206.94,0.00013758,2]
[387779184,1758847520625,206.94,0.00014268,2]
[387779185,1758847520894,206.94,0.00014777,2]
[387779186,1758847521099,206.94,0.00015287,2]
[387779187,1758847521300,206.94,0.00015796,2]
[387779188,1758847521517,206.94,0.00016306,2]
[387779189,1758847521729,206.94,0.00016816,2]
[387779190,1758847521938,206.94,0.00017325,2]
[387779191,1758847522163,206.94,0.00017835,2]
[387779192,1758847522390,206.94,0.00018344,2]
[387779193,1758847528234,-181.99694642,0.00018854,2]
[387779194,1758847744756,-24.94305358,0.00018854,2]
[387779195,1758847744779,-216.27878769,0.00018962,2]
[387779196,1758847748140,-202.28796662,0.00018962,2]
[387779197,1758847750196,-413.70678079,0.00018962,2]
[387779198,1758847752366,-286.28226592,0.00018962,2]
[387779199,1758847753412,-400.0,0.00018962,2]
[387779200,1758847756686,-228.43186935,0.00018962,2]
[387779201,1758847757986,-253.01232963,0.00018962,2]
[387779202,1758847758014,-150.0,0.0001907,7]
[387779203,1758847758043,-206.94,0.00019363,2]
[387779204,1758847758071,-666.0,0.00019413,3]
[387779205,1758847758098,-1072.14839257,0.00019413,2]
[387779206,1758847758126,-2108.9,0.00019524,2]
[387779207,1758847758153,-151.0,0.00019524,2]
[387779208,1758847758181,-2000.0,0.00019543,2]
[387779209,1758847758210,-1200.0,0.00019579,2]
[387779210,1758847758238,-2000.0,0.0001958,2]
[387779211,1758847758265,-400.0,0.000196,7]
[387779212,1758847758292,-432.84,0.00019617,2]
[387779213,1758847758322,-800.0,0.000197,7]
[387779214,1758847758349,-1300.0,0.000198,7]
[387779215,1758847758380,-1000.0,0.000199,2]
[387779216,1758847758406,-159.0543644,0.000199,2]
[387779217,1758847758437,-181.9969,0.000199,2]
[387779218,1758847758467,-1700.0,0.000199,7]
[387779219,1758847758494,-179.6092782,0.000199,2]
[387779220,1758847758522,-2112.3447,0.000199,2]
[387779221,1758847758549,-166.99484099,0.000199,2]
[387779222,1758847758577,-2939.96775807,0.000199,2]
[387779223,1758847758604,-558.87259112,0.000199,2]
[387779224,1758847758631,-500.0,0.00019973,2]
[387779225,1758847758657,-201.91684572,0.00019988,2]
[387779226,1758847758684,-287.59245976,0.00019994,2]
[387779227,1758847758715,-500.0,0.00019994,2]
[387779228,1758847758747,-500.0,0.00019994,2]
[387779229,1758847758778,-500.0,0.00019994,2]
[387779230,1758847758808,-500.0,0.00019994,2]
[387779231,1758847758840,-500.0,0.00019994,2]
[387779232,1758847758869,-500.0,0.00019994,2]
[387779233,1758847758897,-500.0,0.00019994,2]
[387779234,1758847759116,-500.0,0.00019994,2]
[387779235,1758847759147,-500.0,0.00019994,2]
[387779236,1758847759177,-500.0,0.00019994,2]
[387779237,1758847759207,-500.0,0.00019994,2]
[387779238,1758847759236,-500.0,0.00019994,2]
[387779239,1758847759263,-500.0,0.00019994,2]
[387779240,1758847759290,-500.0,0.00019994,2]
[387779241,1758847759318,-500.0,0.00019994,2]
[387779242,1758847759345,-500.0,0.00019994,2]
[387779243,1758847759373,-323.65018126,0.00019994,2]
[387779244,1758847759400,-500.0,0.00019994,2]
[387779245,1758847759429,-500.0,0.00019994,2]
[387779246,1758847759458,-500.0,0.00019994,2]
[387779247,1758847759487,-500.0,0.00019994,2]
[387779248,1758847759516,-500.0,0.00019994,2]
[387779249,1758847759543,-4192.668,0.00019997,2]
[387779250,1758847759568,-165.132,0.00019997,2]
[387779251,1758847759595,-151.0,0.00019997,2]
[387779252,1758847759620,-151.0,0.00019997,2]
[387779253,1758847759646,-1688.84010001,0.00019998,2]
[387779254,1758847759672,-1000.0,0.00019999,2]
[387779255,1758847759700,-3320.1053843,0.00019999,2]
[387779256,1758847759726,-150.0,0.00019999,2]
[387779257,1758847759752,-3155628.41387397,0.0002,2]
[387779258,1758847786706,497.0501,0.0001851,2]
[387779271,1758847832282,-303.86997245,0.000199,2]
[387779272,1758847832292,-1307.24995993,0.0001995,2]
[387779273,1758847832301,-151.0,0.00019997,2]
[387779274,1758847832310,-151.0,0.00019997,2]
[387779275,1758847832320,-300.0,0.00019999,2]
[387779276,1758847832329,-1200.0,0.00019999,2]
[387779277,1758847832338,-16325.58590139,0.0002,2]
[387779278,1758847832347,-152.23,0.0002,2]
[387779279,1758847832356,-168.46,0.00020077,2]
[387779280,1758847832366,-167.28,0.00020109,2]
[387779281,1758847832375,-150.0,0.00020136,2]
[387779282,1758847832385,-500.0,0.00020136,2]
[387779283,1758847832395,-150.0,0.00020136,2]
[387779284,1758847832404,-150.0,0.00020136,2]
[387779285,1758847832413,-500.0,0.00020136,2]
[387779286,1758847832422,-355.55564324,0.00020136,2]
[387779287,1758847832435,-144.44435676,0.00020136,2]
[387779288,1758847832447,-525.58,0.00020142,2]
[387779289,1758847832456,-587.6,0.00020229,2]
[387779290,1758847832466,-200.0,0.00020273,2]
[387779291,1758847832475,-3426.41576308,0.00020304,2]
[387779292,1758847832487,-525.74328535,0.00020304,2]
[387779293,1758847832498,-578.1981307,0.00020304,2]
[387779294,1758847832512,-469.64282087,0.00020304,2]
[387779295,1758847832523,-150.0,0.0002041,2]
[387779296,1758847832533,-485.56132536,0.0002041,2]
[387779297,1758847832545,-19.04416845,0.0002041,2]
[387779298,1758847832555,-150.0,0.0002041,2]
[387779299,1758847832564,-500.0,0.0002041,2]
[387779300,1758847832574,-500.0,0.0002041,2]
[387779301,1758847832584,-32.86945026,0.00020475,2]
[387779302,1758847832605,-146.73982792,0.00020475,2]
[387779303,1758847832615,-346.8703145,0.00020521,2]
[387779304,1758847832630,-653.1296855,0.00020521,2]
[387779305,1758847832639,-432.84,0.00020598,2]
[387779307,1758847832648,-198.00694832,0.00020684,2]
[387779308,1758847832658,-150.0,0.00020684,2]
[387779311,1758847832668,-500.0,0.00020684,2]
[387779313,1758847832677,-473.0,0.00020684,2]
[387779316,1758847832688,-250.0,0.00020739,2]
[387779318,1758847832697,-1304.34518475,0.00020739,2]
[387779321,1758847832720,-695.65481525,0.00020739,2]
[387779324,1758847832730,-168.46,0.0002095,2]
[387779325,1758847832739,-150.0,0.00020958,2]
[387779327,1758847832749,-500.0,0.00020958,2]
[387779330,1758847832761,-1000.0,0.00020986,2]
[387779332,1758847832770,-179.60927818,0.0002105,2]
[387779334,1758847832780,-1008.36059818,0.00021068,2]
[387779335,1758847832790,-250.0,0.00021232,2]
[387779337,1758847832799,-294.0,0.00021232,2]
[387779339,1758847832808,-516.82390809,0.00021288,2]
[387779341,1758847832818,-20080.61377456,0.000213,2]
[387779345,1758847832844,-4498.31984365,0.000213,2]
[387779413,1758847838236,-538.78180656,0.000199,2]
[387779414,1758847838291,-461.21819344,0.000199,2]
[387779415,1758847838301,-500.0,0.00020409,2]
[387779416,1758847838311,-500.0,0.00020409,2]
[387779417,1758847838320,-202.62779792,0.00020409,2]
[387779418,1758847838329,-4654.39220208,0.000213,2]
[387779421,1758847840221,-308.4314416,0.000213,2]
[387779422,1758847840233,-405.749847,0.000213,2]
[387779423,1758847840377,-8646.80787512,0.000213,2]
[387779424,1758847840389,-3638.82501599,0.000213,2]
[387779425,1758847840399,-150.0,0.000213,2]
[387779426,1758847840408,-150.0,0.000213,2]
[387779427,1758847840418,-500.0,0.000213,2]
[387779428,1758847840428,-500.0,0.000213,2]
[387779429,1758847840441,-3638.0,0.000213,2]
[387779430,1758847840451,-150.0,0.000213,2]
[387779431,1758847840461,-150.0,0.000213,2]
[387779432,1758847840471,-70.39377874,0.000213,2]
[387779433,1758847840483,-429.60622126,0.000213,2]
[387779434,1758847840493,-150.0,0.000213,2]
[387779435,1758847840502,-500.0,0.000213,2]
[387779436,1758847840512,-150.0,0.000213,2]
[387779437,1758847840524,-500.0,0.0002135,2]
[387779438,1758847840534,-500.0,0.0002135,2]
[387779440,1758847840544,-500.0,0.0002135,2]
[387779441,1758847840554,-150.0,0.0002135,2]
[387779442,1758847840563,-150.0,0.0002135,2]
[387779443,1758847840573,-150.0,0.0002135,2]
[387779444,1758847840583,-500.0,0.00021355,2]
[387779446,1758847840592,-250.0,0.00021355,2]
[387779448,1758847840603,-5000.0,0.00021389,2]
[387779450,1758847840613,-14.17764336,0.00021499,2]
[387779452,1758847840625,-399.32518096,0.00021499,2]
[387779454,1758847840635,-8678.22348056,0.000215,2]
[387779456,1758847840647,-8943.84023489,0.000215,2]
[387779459,1758847840659,-10938.0,0.000215,2]
[387779464,1758847840866,-13673.07628455,0.000215,2]
[387779465,1758847840876,-42233.14,0.000215,2]
[387779466,1758847840886,-200.0,0.00021574,2]
[387779467,1758847840895,-200.0,0.00021574,2]
[387779468,1758847840905,-500.0,0.00021574,2]
[387779469,1758847840915,-500.0,0.00021574,2]
[387779470,1758847840928,-3638.0,0.00021574,2]
[387779471,1758847840938,-250.0,0.00021574,2]
[387779472,1758847840948,-150.0,0.00021574,2]
[387779473,1758847840957,-500.0,0.00021574,2]
[387779474,1758847840967,-150.0,0.00021574,2]
[387779475,1758847840978,-500.0,0.00021574,2]
[387779476,1758847840988,-432.84,0.00021579,2]
[387779477,1758847840998,-500.0,0.00021624,2]
[387779478,1758847841008,-500.0,0.00021624,2]
[387779479,1758847841019,-500.0,0.00021624,2]
[387779480,1758847841029,-157.10239942,0.00021624,2]
[387779481,1758847841039,-200.0,0.00021624,2]
[387779482,1758847841049,-150.0,0.00021624,2]
[387779483,1758847841059,-179.60927818,0.00021624,2]
[387779484,1758847841068,-500.0,0.00021644,2]
[387779485,1758847841079,-500.0,0.00021644,2]
[387779486,1758847841088,-500.0,0.00021644,2]
[387779487,1758847841099,-500.0,0.00021644,2]
[387779488,1758847841108,-500.0,0.00021644,2]
[387779489,1758847841118,-500.0,0.00021644,2]
[387779490,1758847841128,-500.0,0.00021644,2]
[387779491,1758847841138,-500.0,0.00021644,2]
[387779492,1758847841151,-500.0,0.00021644,2]
[387779493,1758847841161,-500.0,0.00021644,2]
[387779494,1758847841171,-500.0,0.00021644,2]
[387779495,1758847841181,-500.0,0.00021644,2]
[387779496,1758847841191,-150.0,0.00021761,2]
[387779497,1758847841201,-167.28,0.00021769,2]
[387779498,1758847841211,-1000.0,0.00021773,2]
[387779499,1758847841222,-420.0,0.00021777,2]
[387779500,1758847841232,-168.46,0.00021823,2]
[387779501,1758847841242,-500.0,0.00021848,2]
[387779502,1758847841252,-500.0,0.00021848,2]
[387779503,1758847841261,-3638.0,0.00021848,2]
[387779504,1758847841273,-150.0,0.00021848,2]
[387779505,1758847841283,-500.0,0.00021848,2]
[387779506,1758847841292,-350.0,0.00021848,2]
[387779507,1758847841302,-1680.0,0.00021881,2]
[387779508,1758847841311,-2000.0,0.0002189,2]
[387779509,1758847841320,-500.0,0.00021898,2]
[387779510,1758847841329,-500.0,0.00021898,2]
[387779511,1758847841338,-500.0,0.00021898,2]
[387779512,1758847841348,-266.61773013,0.00021898,2]
[387779513,1758847841357,-42233.14,0.000219,2]
[387779514,1758847841367,-1000.0,0.000219,2]
[387779515,1758847841376,-1000.0,0.000219,2]
[387779516,1758847841388,-1000.0,0.000219,2]
[387779517,1758847841396,-1000.0,0.000219,2]
[387779518,1758847841405,-1000.0,0.000219,2]
[387779519,1758847841414,-150.0,0.000219,2]
[387779520,1758847841423,-2037.24,0.000219,2]
[387779521,1758847841433,-1000.0,0.000219,2]
[387779522,1758847841446,-1000.0,0.00021917,2]
[387779523,1758847841455,-391.18,0.00021917,2]
[387779524,1758847841464,-5000.0,0.00021918,2]